[Event "World Senior chT-65 2019"]
[Site "Rhodes"]
[Date "2019.04.17"]
[Round "2.36"]
[White "Kauko, Pekka"]
[Black "Grevlund, Per"]
[Result "1-0"]
[ECO "D60"]
[WhiteElo "1902"]
[BlackElo "1998"]
[Annotator "NA RC"]
[PlyCount "81"]
[EventDate "2019.04.16"]
[EventType "team-tourn"]
[EventCountry "GRE"]
[SourceTitle "playchess.com"]
[Source "ChessBase"]
[SourceQuality "1"]
[WhiteTeam "Finland"]
[BlackTeam "Denmark"]
[WhiteTeamCountry "FIN"]
[BlackTeamCountry "DEN"]
[TimeControl "40/5400+30:1800+30"]

1. d4 {[%emt 0:00:00]} d5 {[%emt 0:00:00]} 2. Nf3 {[%emt 0:00:00]} Nf6 {[%emt 0:00:00]} 3. c4 {[%emt 0:00:06]} e6 {[%emt 0:00:00]} 4. Bg5 {[%emt 0:00:33]} Be7 {[%emt 0:00:53]} 5. e3 {[%emt 0:00:16]} c6 {[%emt 0:00:20]} 6. Nc3 {[%emt 0:00:26]} Nbd7 {[%emt 0:00:55]} 7. Bd3 {[%emt 0:00:29]} O-O {[%emt 0:02:47]} 8. O-O {[%emt 0:00:11]} Re8 {[%emt 0:01:28]} 9. Qe2 {[%emt 0:01:07]} Nf8 {[%emt 0:02:22]} 10. Rfd1 {[%emt 0:02:02]} Ng6 {[%emt 0:04:38]} 11. Ne5 {[%emt 0:04:26]} Nd7 {[%emt 0:04:45]} 12. Bxe7 {[%emt 0:03:57]} Qxe7 {[%emt 0:03:28]} 13. f4 {[%emt 0:00:39]} f5 {[%emt 0:05:14]} 14. a3 {[%emt 0:03:52]} Ngxe5 {[%emt 0:02:30]} 15. dxe5 {[%emt 0:02:05]} Nb6 {[%emt 0:03:33]} 16. b4 {[%emt 0:01:47]} dxc4 {[%emt 0:02:41]} 17. Bxc4 {[%emt 0:00:23]} Nxc4 {[%emt 0:00:25]} 18. Qxc4 {[%emt 0:00:14]} Bd7 {[%emt 0:00:54]} 19. Rd6 {[%emt 0:01:56]} Rad8 {[%emt 0:13:43]} 20. Rad1 {[%emt 0:00:40]} Bc8 {[%emt 0:02:06]} 21. b5 {[%emt 0:08:22]} Rxd6 {[%emt 0:09:32]} 22. exd6 {[%emt 0:01:15]} Qd7 {[%emt 0:05:02]} 23. bxc6 {[%emt 0:00:41]} bxc6 {[%emt 0:00:08]} 24. Na4 {[%emt 0:00:19]} Rd8 {[%emt 0:01:59]} 25. Nc5 {[%emt 0:01:25]} Qf7 {[%emt 0:00:49]} 26. Qd4 {[%emt 0:01:32]} Bd7 {[%emt 0:04:09]} 27. h3 {[%emt 0:01:12]} Qf6 {[%emt 0:03:48]} 28. Qe5 {[%emt 0:00:56]} Kf8 {[%emt 0:05:35]} 29. Rb1 {[%emt 0:00:22]} Bc8 {[%emt 0:02:16]} 30. Rb8 {[%emt 0:00:33]} Ke8 {[%emt 0:06:05]} 31. Ra8 {[%emt 0:00:35]} a6 {[%emt 0:05:20]} 32. Qxf6 {[%emt 0:04:00]} gxf6 {[%emt 0:00:12]} 33. Rxc8 {[%emt 0:00:10]} Rxc8 {[%emt 0:00:19]} 34. d7+ {[%emt 0:00:05]} Kd8 {[%emt 0:00:13]} 35. dxc8=Q+ {[%emt 0:00:11]} Kxc8 {[%emt 0:00:08]} 36. Nxe6 {[%emt 0:00:19]} Kb7 {[%emt 0:00:47]} 37. Kf1 {[%emt 0:00:19]} Kb6 {[%emt 0:00:11]} 38. Ke2 {[%emt 0:00:17]} Kb5 {[%emt 0:00:20]} 39. Nd4+ {[%emt 0:00:23]} Ka4 {[%emt 0:00:40]} 40. Nxc6 {[%emt 0:00:00]} Kxa3 {[%emt 0:00:00]} 41. Kd3 {[%emt 0:00:51]} 1-0

[Event "World Senior chT-65 2019"]
[Site "Rhodes"]
[Date "2019.04.17"]
[Round "2.37"]
[White "Maki, Christer"]
[Black "Scrimgour, Alan"]
[Result "1/2-1/2"]
[ECO "B26"]
[WhiteElo "1885"]
[BlackElo "2087"]
[Annotator "NA RC"]
[PlyCount "35"]
[EventDate "2019.04.16"]
[EventType "team-tourn"]
[EventCountry "GRE"]
[SourceTitle "playchess.com"]
[Source "ChessBase"]
[SourceQuality "1"]
[WhiteTeam "Sweden"]
[BlackTeam "Scotland"]
[WhiteTeamCountry "SWE"]
[BlackTeamCountry "SCO"]
[TimeControl "40/5400+30:1800+30"]

1. e4 {[%emt 1:18:28]} c5 {[%emt 0:00:07]} 2. Nc3 {[%emt 0:00:31]} Nc6 {[%emt 0:00:17]} 3. g3 {[%emt 0:00:26]} g6 {[%emt 0:00:07]} 4. Bg2 {[%emt 0:00:05]} Bg7 {[%emt 0:00:15]} 5. d3 {[%emt 0:01:28]} d6 {[%emt 0:00:10]} 6. Be3 {[%emt 0:03:24]} e6 {[%emt 0:06:10]} 7. Qd2 {[%emt 0:07:17]} Rb8 {[%emt 0:07:59]} 8. a4 {[%emt 0:07:00]} a6 {[%emt 0:00:56]} 9. h4 {[%emt 0:04:07]} h5 {[%emt 0:06:51]} 10. Nge2 {[%emt 0:10:31]} Nd4 {[%emt 0:01:56]} 11. Nd1 {[%emt 0:06:31]} Nh6 {[%emt 0:11:15]} 12. Bxd4 {[%emt 0:01:52]} cxd4 {[%emt 0:02:37]} 13. c3 {[%emt 0:00:48]} dxc3 {[%emt 0:02:23]} 14. Ndxc3 {[%emt 0:01:18]} Ng4 {[%emt 0:04:59]} 15. O-O {[%emt 0:06:41]} O-O {[%emt 0:05:40]} 16. d4 {[%emt 0:03:24]} b5 {[%emt 0:03:03]} 17. axb5 {[%emt 0:03:33]} axb5 {[%emt 0:00:15]} 18. b4 {[%emt 0:00:31]} 1/2-1/2

[Event "World Senior chT-65 2019"]
[Site "Rhodes"]
[Date "2019.04.17"]
[Round "2.39"]
[White "Dalling, Peter"]
[Black "Bhopal, Raj"]
[Result "0-1"]
[ECO "B21"]
[WhiteElo "1830"]
[BlackElo "1900"]
[Annotator "NA RC"]
[PlyCount "72"]
[EventDate "2019.04.16"]
[EventType "team-tourn"]
[EventCountry "GRE"]
[SourceTitle "playchess.com"]
[Source "ChessBase"]
[SourceQuality "1"]
[WhiteTeam "Sweden"]
[BlackTeam "Scotland"]
[WhiteTeamCountry "SWE"]
[BlackTeamCountry "SCO"]
[TimeControl "40/5400+30:1800+30"]

1. e4 {[%emt 0:00:00]} c5 {[%emt 0:00:00]} 2. Nf3 {[%emt 0:00:00]} d6 {[%emt 0:00:00]} 3. d4 {[%emt 0:00:00]} cxd4 {[%emt 0:00:00]} 4. c3 {[%emt 0:00:00]} dxc3 {[%emt 0:00:16]} 5. Nxc3 {[%emt 0:00:02]} Nc6 {[%emt 0:01:07]} 6. Bc4 {[%emt 0:00:08]} e6 {[%emt 0:00:49]} 7. O-O {[%emt 0:00:38]} Be7 {[%emt 0:00:53]} 8. Qe2 {[%emt 0:00:16]} Nf6 {[%emt 0:04:12]} 9. Rd1 {[%emt 0:00:30]} Nd7 {[%emt 0:09:12]} 10. h3 {[%emt 0:05:28]} a6 {[%emt 0:02:55]} 11. a4 {[%emt 0:00:40]} O-O {[%emt 0:01:44]} 12. Be3 {[%emt 0:05:37]} Qa5 {[%emt 0:03:21]} 13. Nh2 {[%emt 0:07:41]} Nde5 {[%emt 0:07:17]} 14. Ba2 {[%emt 0:04:32]} Nb4 {[%emt 0:03:19]} 15. Bb3 {[%emt 0:01:33]} Bd7 {[%emt 0:02:01]} 16. Bd4 {[%emt 0:06:23]} Nec6 {[%emt 0:08:30]} 17. Be3 {[%emt 0:01:19]} Rac8 {[%emt 0:02:42]} 18. Rac1 {[%emt 0:01:36]} Kh8 {[%emt 0:03:11]} 19. Bf4 {[%emt 0:09:03]} e5 {[%emt 0:04:29]} 20. Be3 {[%emt 0:04:31]} Qd8 {[%emt 0:01:49]} 21. Qh5 {[%emt 0:03:20]} Be8 {[%emt 0:03:39]} 22. Qg4 {[%emt 0:03:26]} Qd7 {[%emt 0:03:57]} 23. Qg3 {[%emt 0:06:12]} f5 {[%emt 0:02:03]} 24. exf5 {[%emt 0:00:00]} Qxf5 {[%emt 0:00:55]} 25. Nd5 {[%emt 0:01:36]} Nxd5 {[%emt 0:01:31]} 26. Bxd5 {[%emt 0:03:51]} Bh5 {[%emt 0:03:12]} 27. f3 {[%emt 0:04:16]} Bf7 {[%emt 0:08:39]} 28. Be4 {[%emt 0:00:59]} Qh5 {[%emt 0:00:39]} 29. Qe1 {[%emt 0:04:10]} Bb3 {[%emt 0:01:22]} 30. Rd3 {[%emt 0:01:25]} Bxa4 {[%emt 0:00:56]} 31. Rdc3 {[%emt 0:02:41]} Bg5 {[%emt 0:02:27]} 32. Ng4 {[%emt 0:01:34]} Rcd8 {[%emt 0:01:53]} 33. Bxg5 {[%emt 0:05:22]} Qxg5 {[%emt 0:00:01]} 34. Ne3 {[%emt 0:00:12]} Bb5 {[%emt 0:02:52]} 35. Nd5 {[%emt 0:01:28]} Nd4 {[%emt 0:00:52]} 36. Bd3 {[%emt 0:02:05]} Nxf3+ {[%emt 0:00:39]} 0-1

[Event "World Senior chT-65 2019"]
[Site "Rhodes"]
[Date "2019.04.17"]
[Round "2.40"]
[White "Dawson, Alastair"]
[Black "Gunnarsson, Lennart"]
[Result "1/2-1/2"]
[ECO "C00"]
[WhiteElo "1817"]
[BlackElo "1752"]
[Annotator "NA RC"]
[PlyCount "85"]
[EventDate "2019.04.16"]
[EventType "team-tourn"]
[EventCountry "GRE"]
[SourceTitle "playchess.com"]
[Source "ChessBase"]
[SourceQuality "1"]
[WhiteTeam "Scotland"]
[BlackTeam "Sweden"]
[WhiteTeamCountry "SCO"]
[BlackTeamCountry "SWE"]
[TimeControl "40/5400+30:1800+30"]

1. e4 {[%emt 0:00:00]} e6 {[%emt 0:00:00]} 2. Qe2 {[%emt 0:00:00]} Be7 {[%emt 0:01:22]} 3. Nf3 {[%emt 0:00:25]} d5 {[%emt 0:01:38]} 4. d3 {[%emt 0:01:14]} Nf6 {[%emt 0:02:23]} 5. g3 {[%emt 0:00:39]} O-O {[%emt 0:01:04]} 6. e5 {[%emt 0:01:07]} Nfd7 {[%emt 0:00:29]} 7. Bg2 {[%emt 0:00:17]} c5 {[%emt 0:02:08]} 8. O-O {[%emt 0:00:23]} Nc6 {[%emt 0:03:14]} 9. c4 {[%emt 0:10:12]} d4 {[%emt 0:07:51]} 10. Re1 {[%emt 0:01:43]} Rb8 {[%emt 0:06:09]} 11. h4 {[%emt 0:02:36]} Qc7 {[%emt 0:05:53]} 12. Bf4 {[%emt 0:01:34]} b5 {[%emt 0:04:55]} 13. b3 {[%emt 0:11:04]} bxc4 {[%emt 0:01:53]} 14. bxc4 {[%emt 0:02:08]} Rb6 {[%emt 0:07:39]} 15. Na3 {[%emt 0:07:27]} Ba6 {[%emt 0:01:10]} 16. Rab1 {[%emt 0:08:52]} Rfb8 {[%emt 0:00:26]} 17. Ng5 {[%emt 0:05:59]} Bxg5 {[%emt 0:02:11]} 18. hxg5 {[%emt 0:01:59]} Ne7 {[%emt 0:08:47]} 19. Rxb6 {[%emt 0:02:11]} Rxb6 {[%emt 0:00:33]} 20. g4 {[%emt 0:01:06]} Ng6 {[%emt 0:01:12]} 21. Bg3 {[%emt 0:00:36]} Qb8 {[%emt 0:02:56]} 22. Qd1 {[%emt 0:07:20]} Rb4 {[%emt 0:04:20]} 23. f4 {[%emt 0:02:28]} Qb6 {[%emt 0:03:53]} 24. f5 {[%emt 0:01:33]} Ngf8 {[%emt 0:01:32]} 25. Re2 {[%emt 0:07:06]} Qa5 {[%emt 0:02:55]} 26. Nb1 {[%emt 0:01:30]} Qb6 {[%emt 0:01:25]} 27. Na3 {[%emt 0:00:48]} Qa5 {[%emt 0:01:13]} 28. Qc1 {[%emt 0:02:03]} Qc7 {[%emt 0:06:12]} 29. f6 {[%emt 0:01:50]} Ng6 {[%emt 0:02:14]} 30. Qe1 {[%emt 0:02:45]} Qa5 {[%emt 0:03:44]} 31. Qc1 {[%emt 0:00:30]} Qc7 {[%emt 0:00:01]} 32. fxg7 {[%emt 0:01:43]} Kxg7 {[%emt 0:01:56]} 33. Qe1 {[%emt 0:00:31]} Qa5 {[%emt 0:00:43]} 34. Qc1 {[%emt 0:01:50]} Qc7 {[%emt 0:00:05]} 35. Qf1 {[%emt 0:02:08]} Rb8 {[%emt 0:02:29]} 36. Qe1 {[%emt 0:00:50]} Rb4 {[%emt 0:01:23]} 37. Kf2 {[%emt 0:02:35]} Qd8 {[%emt 0:03:15]} 38. Qc1 {[%emt 0:00:39]} Qb8 {[%emt 0:00:30]} 39. Qe1 {[%emt 0:00:34]} Qd8 {[%emt 0:00:21]} 40. Qc1 {[%emt 0:00:00]} Qb8 {[%emt 0:00:00]} 41. Kg1 {[%emt 0:03:28]} Qc7 {[%emt 0:03:53]} 42. Qf1 {[%emt 0:06:05]} Rb8 {[%emt 0:00:29]} 43. Qe1 {[%emt 0:03:15]} 1/2-1/2

[Event "World Senior chT-65 2019"]
[Site "Rhodes"]
[Date "2019.04.17"]
[Round "2.43"]
[White "Valentine, Brian J"]
[Black "Van Herck, Marcel"]
[Result "0-1"]
[ECO "B17"]
[WhiteElo "1954"]
[BlackElo "2066"]
[Annotator "NA RC"]
[PlyCount "134"]
[EventDate "2019.04.16"]
[EventType "team-tourn"]
[EventCountry "GRE"]
[SourceTitle "playchess.com"]
[Source "ChessBase"]
[SourceQuality "1"]
[WhiteTeam "England"]
[BlackTeam "Belgium"]
[WhiteTeamCountry "ENG"]
[BlackTeamCountry "BEL"]
[TimeControl "40/5400+30:1800+30"]

1. e4 {[%emt 0:00:00]} c6 {[%emt 0:00:01]} 2. d4 {[%emt 0:00:00]} d5 {[%emt 0:00:06]} 3. Nd2 {[%emt 0:00:00]} dxe4 {[%emt 0:00:06]} 4. Nxe4 {[%emt 0:00:00]} Nd7 {[%emt 0:00:09]} 5. Ng5 {[%emt 0:00:22]} h6 {[%emt 0:00:24]} 6. Ne6 {[%emt 0:08:35]} Qb6 {[%emt 0:00:10]} 7. Nxf8 {[%emt 0:00:09]} Nxf8 {[%emt 0:00:07]} 8. c3 {[%emt 0:03:04]} Bf5 {[%emt 0:02:09]} 9. Nf3 {[%emt 0:00:09]} Nf6 {[%emt 0:01:00]} 10. Ne5 {[%emt 0:05:46]} N8d7 {[%emt 0:03:46]} 11. Bc4 {[%emt 0:06:41]} e6 {[%emt 0:12:04]} 12. Qe2 {[%emt 0:03:04]} O-O {[%emt 0:05:28]} 13. O-O {[%emt 0:02:58]} Nxe5 {[%emt 0:08:03]} 14. dxe5 {[%emt 0:01:54]} Nd5 {[%emt 0:02:34]} 15. a3 {[%emt 0:04:55]} a5 {[%emt 0:06:59]} 16. Ba2 {[%emt 0:02:02]} Rfd8 {[%emt 0:04:45]} 17. Rd1 {[%emt 0:00:39]} Qc5 {[%emt 0:03:00]} 18. c4 {[%emt 0:02:00]} Ne7 {[%emt 0:00:35]} 19. Bf4 {[%emt 0:04:23]} Rd4 {[%emt 0:06:40]} 20. Qe3 {[%emt 0:03:17]} Rad8 {[%emt 0:00:21]} 21. Rxd4 {[%emt 0:01:27]} Qxd4 {[%emt 0:00:20]} 22. Qxd4 {[%emt 0:00:31]} Rxd4 {[%emt 0:00:06]} 23. g3 {[%emt 0:07:52]} Ng6 {[%emt 0:02:29]} 24. Be3 {[%emt 0:00:39]} Rd3 {[%emt 0:02:10]} 25. Bb6 {[%emt 0:04:49]} Nxe5 {[%emt 0:09:15]} 26. f4 {[%emt 0:02:32]} Nf3+ {[%emt 0:04:54]} 27. Kf2 {[%emt 0:00:01]} Nxh2 {[%emt 0:01:31]} 28. Bxa5 {[%emt 0:00:16]} Ng4+ {[%emt 0:00:24]} 29. Kg2 {[%emt 0:02:22]} Re3 {[%emt 0:08:30]} 30. Re1 {[%emt 0:00:02]} Be4+ {[%emt 0:00:50]} 31. Kh3 {[%emt 0:01:40]} Rxe1 {[%emt 0:05:41]} 32. Bxe1 {[%emt 0:00:02]} f5 {[%emt 0:00:35]} 33. c5 {[%emt 0:03:27]} Kf7 {[%emt 0:00:33]} 34. Bc4 {[%emt 0:02:26]} Ne3 {[%emt 0:00:47]} 35. Be2 {[%emt 0:02:58]} Bd5 {[%emt 0:04:02]} 36. Bd2 {[%emt 0:04:29]} Nc2 {[%emt 0:01:06]} 37. Bc3 {[%emt 0:07:05]} g5 {[%emt 0:01:11]} 38. fxg5 {[%emt 0:00:06]} hxg5 {[%emt 0:00:03]} 39. a4 {[%emt 0:02:26]} Kg6 {[%emt 0:01:03]} 40. a5 {[%emt 0:00:00]} Ne3 {[%emt 0:00:00]} 41. a6 {[%emt 0:00:40]} bxa6 {[%emt 0:01:53]} 42. Bxa6 {[%emt 0:00:06]} Bg2+ {[%emt 0:08:38]} 43. Kh2 {[%emt 0:00:23]} Bf1 {[%emt 0:00:23]} 44. Bb7 {[%emt 0:00:31]} Bb5 {[%emt 0:00:30]} 45. Kg1 {[%emt 0:04:49]} Ng4 {[%emt 0:01:29]} 46. Bc8 {[%emt 0:01:24]} e5 {[%emt 0:01:20]} 47. Bd7 {[%emt 0:06:40]} Kf6 {[%emt 0:00:30]} 48. Be8 {[%emt 0:00:30]} Ke6 {[%emt 0:01:39]} 49. Bh5 {[%emt 0:00:20]} Nf6 {[%emt 0:00:41]} 50. Bd1 {[%emt 0:02:56]} Ne4 {[%emt 0:00:38]} 51. Be1 {[%emt 0:09:39]} Nxc5 {[%emt 0:00:16]} 52. Bc2 {[%emt 0:01:53]} e4 {[%emt 0:02:00]} 53. Bd2 {[%emt 0:01:19]} Bd3 {[%emt 0:01:18]} 54. Bd1 {[%emt 0:04:22]} Kf6 {[%emt 0:00:19]} 55. Bc3+ {[%emt 0:01:14]} Kg6 {[%emt 0:00:21]} 56. b4 {[%emt 0:00:55]} Ne6 {[%emt 0:00:53]} 57. Bb3 {[%emt 0:00:14]} Nc7 {[%emt 0:00:20]} 58. Kf2 {[%emt 0:00:40]} Nd5 {[%emt 0:02:14]} 59. Bxd5 {[%emt 0:00:55]} cxd5 {[%emt 0:00:04]} 60. Be5 {[%emt 0:01:18]} Kh5 {[%emt 0:00:13]} 61. Bd4 {[%emt 0:00:50]} Kg4 {[%emt 0:00:25]} 62. Bc5 {[%emt 0:00:49]} f4 {[%emt 0:00:13]} 63. gxf4 {[%emt 0:00:14]} gxf4 {[%emt 0:00:05]} 64. Ba7 {[%emt 0:00:52]} Bb5 {[%emt 0:00:16]} 65. Bd4 {[%emt 0:00:17]} e3+ {[%emt 0:00:20]} 66. Ke1 {[%emt 0:01:59]} Kf3 {[%emt 0:00:14]} 67. Bc5 {[%emt 0:00:04]} Ke4 {[%emt 0:00:07]} 0-1

[Event "World Senior chT-65 2019"]
[Site "Rhodes"]
[Date "2019.04.17"]
[Round "2.44"]
[White "Schrickx, Frank"]
[Black "Thynne, Trefor F"]
[Result "1/2-1/2"]
[ECO "B22"]
[WhiteElo "1823"]
[BlackElo "1907"]
[Annotator "NA RC"]
[PlyCount "39"]
[EventDate "2019.04.16"]
[EventType "team-tourn"]
[EventCountry "GRE"]
[SourceTitle "playchess.com"]
[Source "ChessBase"]
[SourceQuality "1"]
[WhiteTeam "Belgium"]
[BlackTeam "England"]
[WhiteTeamCountry "BEL"]
[BlackTeamCountry "ENG"]
[TimeControl "40/5400+30:1800+30"]

1. e4 {[%emt 0:00:00]} c5 {[%emt 0:00:00]} 2. c3 {[%emt 0:00:00]} d5 {[%emt 0:00:00]} 3. exd5 {[%emt 0:00:00]} Qxd5 {[%emt 0:00:00]} 4. d4 {[%emt 0:00:05]} Nf6 {[%emt 0:00:19]} 5. Nf3 {[%emt 0:00:29]} Bg4 {[%emt 0:01:06]} 6. Be2 {[%emt 0:00:44]} e6 {[%emt 0:00:28]} 7. O-O {[%emt 0:01:40]} Nc6 {[%emt 0:02:53]} 8. c4 {[%emt 0:07:51]} Qd8 {[%emt 0:01:11]} 9. dxc5 {[%emt 0:01:36]} Bxc5 {[%emt 0:02:18]} 10. Nc3 {[%emt 0:02:36]} O-O {[%emt 0:03:34]} 11. Bg5 {[%emt 0:02:23]} Be7 {[%emt 0:04:41]} 12. Qa4 {[%emt 0:06:48]} Qa5 {[%emt 0:11:17]} 13. Qxa5 {[%emt 0:06:27]} Nxa5 {[%emt 0:00:01]} 14. b3 {[%emt 0:01:33]} Rfd8 {[%emt 0:06:09]} 15. Rad1 {[%emt 0:03:00]} Nc6 {[%emt 0:03:00]} 16. Rxd8+ {[%emt 0:10:05]} Rxd8 {[%emt 0:00:35]} 17. Rd1 {[%emt 0:01:02]} Rxd1+ {[%emt 0:04:12]} 18. Bxd1 {[%emt 0:00:34]} Kf8 {[%emt 0:00:55]} 19. h3 {[%emt 0:09:01]} Bh5 {[%emt 0:08:30]} 20. Be3 {[%emt 0:04:55]} 1/2-1/2

[Event "World Senior chT-65 2019"]
[Site "Rhodes"]
[Date "2019.04.17"]
[Round "2.45"]
[White "Andersson, Kaj"]
[Black "Khandsuren, Sandagdorj"]
[Result "1-0"]
[ECO "B96"]
[WhiteElo "2030"]
[BlackElo "1954"]
[Annotator "NA RC"]
[PlyCount "90"]
[EventDate "2019.04.16"]
[EventType "team-tourn"]
[EventCountry "GRE"]
[SourceTitle "playchess.com"]
[Source "ChessBase"]
[SourceQuality "1"]
[WhiteTeam "Sweden"]
[BlackTeam "Mongolia"]
[WhiteTeamCountry "SWE"]
[BlackTeamCountry "MGL"]
[TimeControl "40/5400+30:1800+30"]

1. e4 {[%emt 0:00:00]} c5 2. Nf3 {[%emt 0:00:28]} d6 {[%emt 0:00:16]} 3. d4 {[%emt 0:00:00]} cxd4 {[%emt 0:00:09]} 4. Nxd4 {[%emt 0:00:04]} Nf6 {[%emt 0:00:13]} 5. Nc3 {[%emt 0:00:00]} a6 {[%emt 0:00:48]} 6. Bg5 {[%emt 0:00:08]} e6 {[%emt 0:00:14]} 7. f4 {[%emt 0:00:52]} Be7 {[%emt 0:00:51]} 8. Qf3 {[%emt 0:01:08]} Qc7 {[%emt 0:00:14]} 9. O-O-O {[%emt 0:01:13]} Bd7 {[%emt 0:02:13]} 10. Kb1 {[%emt 0:01:19]} Nc6 {[%emt 0:01:38]} 11. Be2 {[%emt 0:03:40]} Rc8 {[%emt 0:01:34]} 12. Rhe1 {[%emt 0:02:51]} Nxd4 {[%emt 0:03:32]} 13. Rxd4 {[%emt 0:00:24]} b5 {[%emt 0:02:47]} 14. a3 {[%emt 0:10:08]} e5 {[%emt 0:02:35]} 15. Rd2 {[%emt 0:03:32]} Bc6 {[%emt 0:04:23]} 16. Bd3 {[%emt 0:02:31]} Qb7 {[%emt 0:14:53]} 17. Qg3 {[%emt 0:03:27]} b4 {[%emt 0:02:25]} 18. axb4 {[%emt 0:00:13]} Qxb4 {[%emt 0:00:52]} 19. fxe5 {[%emt 0:02:34]} Rb8 {[%emt 0:00:55]} 20. Nd1 {[%emt 0:03:45]} dxe5 {[%emt 0:03:07]} 21. Qxe5 {[%emt 0:01:10]} O-O {[%emt 0:02:48]} 22. c3 {[%emt 0:02:11]} Qb7 {[%emt 0:04:28]} 23. Qf4 {[%emt 0:02:52]} Rfe8 {[%emt 0:11:08]} 24. Rf2 {[%emt 0:19:09]} Bd8 25. e5 {[%emt 0:00:57]} Nd5 26. Qh4 {[%emt 0:07:27]} g6 27. Ref1 {[%emt 0:12:12]} Bxg5 {[%emt 0:00:00]} 28. Qxg5 {[%emt 0:01:27]} Re7 {[%emt 0:00:21]} 29. h4 {[%emt 0:06:44]} Rbe8 {[%emt 0:01:28]} 30. Re2 {[%emt 0:01:32]} Ba4 {[%emt 0:03:48]} 31. Kc1 {[%emt 0:00:00]} Bd7 32. h5 {[%emt 0:00:00]} a5 33. Bc4 {[%emt 0:00:00]} Bb5 34. Bxb5 {[%emt 0:00:00]} Qxb5 35. Rfe1 {[%emt 0:01:07]} Qc6 {[%emt 0:02:01]} 36. Nf2 {[%emt 0:00:00]} Nxc3 37. Rc2 {[%emt 0:00:00]} Na2+ 38. Kb1 {[%emt 0:00:00]} Qe6 39. Ng4 {[%emt 0:04:50]} Rb8 {[%emt 0:06:53]} 40. Rh1 {[%emt 0:03:13]} Nc3+ {[%emt 0:01:56]} 41. Rxc3 {[%emt 0:04:14]} Reb7 {[%emt 0:01:56]} 42. Rc2 {[%emt 0:00:00]} Rb4 43. Nf6+ {[%emt 0:08:14]} Kg7 {[%emt 0:00:43]} 44. hxg6 {[%emt 0:02:45]} fxg6 {[%emt 0:00:04]} 45. Rxh7+ {[%emt 0:01:09]} Kf8 {[%emt 0:35:39]} 1-0

[Event "World Senior chT-65 2019"]
[Site "Rhodes"]
[Date "2019.04.17"]
[Round "2.46"]
[White "Myagmarsuren, Begz"]
[Black "Carlsten, Peter"]
[Result "0-1"]
[ECO "A85"]
[WhiteElo "1911"]
[BlackElo "2002"]
[Annotator "NA RC"]
[PlyCount "128"]
[EventDate "2019.04.16"]
[EventType "team-tourn"]
[EventCountry "GRE"]
[SourceTitle "playchess.com"]
[Source "ChessBase"]
[SourceQuality "1"]
[WhiteTeam "Mongolia"]
[BlackTeam "Sweden"]
[WhiteTeamCountry "MGL"]
[BlackTeamCountry "SWE"]
[TimeControl "40/5400+30:1800+30"]

1. d4 {[%emt 0:00:00]} f5 {[%emt 0:00:00]} 2. c4 {[%emt 0:00:00]} Nf6 {[%emt 0:00:15]} 3. Nc3 {[%emt 0:00:16]} g6 {[%emt 0:00:17]} 4. Nf3 {[%emt 0:00:25]} Bg7 {[%emt 0:00:06]} 5. h3 {[%emt 0:01:46]} d6 {[%emt 0:01:01]} 6. e3 {[%emt 0:00:50] A85: Dutch Defence: 2 c4 Nf6 3 Nc3} (6. Bf4 O-O 7. e3 c6 8. Be2 Qe8 9. Bh2 Nbd7 10. O-O e5 11. b4 h6 12. b5 c5 13. dxc5 dxc5 14. Nd5 Nxd5 15. Qxd5+ Qf7 {½-½ (46) Miton,K (2588)-Yakubboev,N (2556) St Petersburg 2018}) 6... c6 {[%emt 0:01:48]} 7. Be2 {[%emt 0:01:12]} O-O {[%emt 0:02:42]} 8. O-O {[%emt 0:00:55]} Qc7 {[%emt 0:00:35]} 9. Qc2 {[%emt 0:00:55]} e5 $146 {[%emt 0:01:01]} ({Predecessor:} 9... Kh8 10. b3 Be6 11. Bb2 Bg8 12. Rad1 Nbd7 13. e4 fxe4 14. Nxe4 Nxe4 15. Qxe4 Nf6 16. Qh4 {0-1 (47) Litterst,R (1843)-Papenbrock,V (2085) Bad Woerishofen 2005}) 10. b3 {[%emt 0:02:36]} Re8 {[%emt 0:04:28]} 11. Bd2 {[%emt 0:02:15]} Kh8 {[%emt 0:02:13]} 12. Rac1 {[%emt 0:00:59]} Be6 {[%emt 0:00:52]} 13. Ng5 {[%emt 0:02:57]} Bg8 {[%emt 0:00:24]} 14. h4 {[%emt 0:03:38]} h6 {[%emt 0:03:04]} 15. Nh3 {[%emt 0:01:12]} Bh7 {[%emt 0:01:28]} 16. d5 {[%emt 0:07:48]} Na6 {[%emt 0:07:11]} 17. a3 {[%emt 0:02:52]} Qf7 {[%emt 0:05:58]} 18. b4 {[%emt 0:02:20]} Nc7 {[%emt 0:02:17]} 19. dxc6 {[%emt 0:02:31]} bxc6 {[%emt 0:00:06]} 20. f4 {[%emt 0:05:51]} Ne6 {[%emt 0:05:51]} 21. fxe5 {[%emt 0:06:56]} dxe5 {[%emt 0:02:47]} 22. Qa4 {[%emt 0:03:35]} Qc7 {[%emt 0:08:24]} 23. Bf3 {[%emt 0:05:00]} Rac8 {[%emt 0:05:30]} 24. Nf2 {[%emt 0:07:00]} Nd7 {[%emt 0:02:40]} 25. Nh1 {[%emt 0:06:21]} Bf6 {[%emt 0:07:37]} 26. Be1 {[%emt 0:00:48]} g5 {[%emt 0:02:21]} 27. Bh5 {[%emt 0:02:13]} Rf8 {[%emt 0:04:06]} 28. hxg5 {[%emt 0:00:51]} hxg5 {[%emt 0:00:35]} 29. Be2 {[%emt 0:03:33]} f4 {[%emt 0:05:00]} 30. Bg4 {[%emt 0:01:35]} Rfe8 {[%emt 0:02:19]} 31. Bf2 {[%emt 0:02:37]} Nb6 {[%emt 0:01:59]} 32. Qb3 {[%emt 0:00:27]} Rcd8 {[%emt 0:03:09]} 33. Bxe6 {[%emt 0:03:03]} Rxe6 {[%emt 0:00:09]} 34. exf4 {[%emt 0:00:28]} gxf4 {[%emt 0:03:31]} 35. Rfd1 {[%emt 0:05:00]} Rde8 {[%emt 0:05:36]} 36. Nd5 {[%emt 0:07:21]} Qb7 {[%emt 0:03:22]} 37. Nxf6 {[%emt 0:01:28]} Rxf6 {[%emt 0:00:10]} 38. Qh3 {[%emt 0:01:40]} Qg7 {[%emt 0:03:13]} 39. Bxb6 {[%emt 0:03:36]} axb6 {[%emt 0:00:02]} 40. Rd7 {[%emt 0:00:00]} Re7 {[%emt 0:00:00]} 41. Rd8+ {[%emt 0:02:59]} Rf8 {[%emt 0:05:32]} 42. Rcd1 {[%emt 0:01:34]} Ref7 {[%emt 0:02:31]} 43. Nf2 {[%emt 0:05:10]} Rxd8 {[%emt 0:05:51]} 44. Rxd8+ {[%emt 0:00:10]} Rf8 {[%emt 0:00:03]} 45. Rxf8+ {[%emt 0:02:29]} Qxf8 {[%emt 0:00:10]} 46. Qe6 {[%emt 0:00:16]} Qg7 {[%emt 0:01:22]} 47. Qxc6 {[%emt 0:00:32]} Bg8 {[%emt 0:13:02]} 48. Qxb6 {[%emt 0:07:29]} f3 {[%emt 0:00:35]} 49. g4 {[%emt 0:00:43]} Bxc4 {[%emt 0:00:58]} 50. Qd8+ {[%emt 0:02:57]} Kh7 {[%emt 0:01:15]} 51. Qc8 {[%emt 0:05:08]} Be2 {[%emt 0:00:51]} 52. Qf5+ {[%emt 0:02:43]} Kg8 {[%emt 0:00:39]} 53. g5 {[%emt 0:00:58]} Qc7 {[%emt 0:01:41]} 54. Qe6+ {[%emt 0:03:16]} Kf8 {[%emt 0:01:50]} 55. Qf6+ {[%emt 0:00:41]} Kg8 {[%emt 0:00:23]} 56. g6 {[%emt 0:03:41]} Qc1+ {[%emt 0:00:12]} 57. Kh2 {[%emt 0:00:03]} Qf4+ $2 {[%emt 0:02:03]} (57... Bc4 58. Qxe5 Qc2) 58. Qxf4 {[%emt 0:00:06]} exf4 {[%emt 0:00:01]} 59. a4 $2 {[%emt 0:00:14]} ({Only move:} 59. Kg1 $18) 59... Kg7 {[%emt 0:00:08]} 60. b5 {[%emt 0:00:04]} Kxg6 {[%emt 0:00:11]} 61. b6 {[%emt 0:00:29]} Ba6 {[%emt 0:00:08]} 62. Nd3 {[%emt 0:00:26]} (62. a5 $11) 62... Kf5 {[%emt 0:00:26]} 63. Nc5 $2 {[%emt 0:00:11]} (63. Kg1 $11 Ke4 64. Nb4 (64. Nc5+ Ke3 $11)) 63... f2 {[%emt 0:01:22]} 64. Nxa6 {[%emt 0:03:36]} f1=Q {[%emt 0:00:08]} 0-1